fUSD/lending_fUSD_20260430
["ID","MTS","AMOUNT","RATE_DAILY","PERIOD"]
[421349240,1777486248000,-1513.9314422,0.00022881,2]
[421349243,1777486248000,-500.0,0.00023,2]
[421349237,1777486248000,-5704.362984,0.00022881,2]
[421349190,1777486248000,-150.0,0.00021834,2]
[421349214,1777486248000,-2713.0,0.00022,2]
[421349188,1777486248000,-162.0,0.00021815,2]
[421349169,1777486248000,-280.0,0.00021,2]
[421349195,1777486248000,-280.0,0.00022,2]
[421349138,1777486248000,-2713.0,0.0002,2]
[421349140,1777486248000,-150.0,0.0002,10]
[421349145,1777486248000,-150.61231671,0.0002,20]
[421349143,1777486248000,-177.01,0.0002,30]
[421349147,1777486248000,-1117.0,0.00020067,2]
[421349160,1777486248000,-150.0,0.00020834,2]
[421349158,1777486248000,-1663.0,0.00020831,2]
[421349152,1777486248000,-1134.5,0.00020381,2]
[421349156,1777486248000,-804.17102365,0.000208,2]
[421349149,1777486248000,-3399.39,0.00020244,2]
[421349154,1777486248000,-644.79446246,0.000208,2]
[421349150,1777486248000,-1572.0,0.00020307,2]
[421349163,1777486248000,-623.0,0.00020853,2]
[421349165,1777486248000,-162.0,0.00020855,2]
[421349167,1777486248000,-450.0,0.00021,2]
[421349171,1777486248000,-151.0,0.00021,2]
[421349173,1777486248000,-371.0,0.00021,2]
[421349179,1777486248000,-249.0,0.00021,2]
[421349182,1777486248000,-1117.0,0.0002107,2]
[421349178,1777486248000,-722.0,0.00021,2]
[421349180,1777486248000,-307.0,0.00021,2]
[421349174,1777486248000,-558.0,0.00021,2]
[421349176,1777486248000,-682.0,0.00021,2]
[421349177,1777486248000,-418.0,0.00021,2]
[421349181,1777486248000,-2713.0,0.00021,2]
[421349184,1777486248000,-150.0,0.000214,2]
[421349191,1777486248000,-5000.0,0.00021918,2]
[421349186,1777486248000,-3399.39,0.00021614,2]
[421349241,1777486248000,-1334.8653149,0.00022881,2]
[421349250,1777486248000,-558.0,0.00023,2]
[421349247,1777486248000,-151.0,0.00023,2]
[421349283,1777486248000,-176.237799,0.00024322,2]
[421349280,1777486248000,-12916.0,0.000241,2]
[421349277,1777486248000,-2713.0,0.00024,2]
[421349279,1777486248000,-177.01,0.00024037,60]
[421349282,1777486248000,-176.237799,0.00024322,2]
[421349284,1777486248000,-176.237799,0.00024322,2]
[421349287,1777486248000,-151.0,0.00024558,2]
[421349288,1777486248000,-199.779772,0.00024558,2]
[421349289,1777486248000,-151.0,0.00024558,2]
[421349295,1777486248000,-150.0,0.00024658,2]
[421349293,1777486248000,-1578.0,0.00024652,3]
[421349292,1777486248000,-310.80884352,0.0002463,2]
[421349286,1777486248000,-1134.5,0.00024324,2]
[421349290,1777486248000,-273.550724,0.00024558,2]
[421349291,1777486248000,-621.61768706,0.0002463,2]
[421349298,1777486248000,-458.0,0.00024658,2]
[421349297,1777486248000,-458.0,0.00024658,2]
[421349294,1777486248000,-151.0,0.00024655,7]
[421349300,1777486248000,-458.0,0.00024658,2]
[421349301,1777486248000,-458.0,0.00024658,2]
[421349299,1777486248000,-458.0,0.00024658,2]
[421349302,1777486248000,-458.0,0.00024658,2]
[421349303,1777486248000,-458.0,0.00024658,2]
[421349304,1777486248000,-458.0,0.00024658,2]
[421349305,1777486248000,-458.0,0.00024658,2]
[421349239,1777486248000,-5089.590032,0.00022881,2]
[421349296,1777486248000,-458.0,0.00024658,2]
[421349276,1777486248000,-307.0,0.00024,2]
[421349306,1777486248000,-458.0,0.00024658,2]
[421349274,1777486248000,-722.0,0.00024,2]
[421349281,1777486248000,-237.36,0.0002411,2]
[421349252,1777486248000,-418.0,0.00023,2]
[421349254,1777486248000,-249.0,0.00023,2]
[421349251,1777486248000,-682.0,0.00023,2]
[421349256,1777486248000,-2713.0,0.00023,2]
[421349253,1777486248000,-722.0,0.00023,2]
[421349255,1777486248000,-307.0,0.00023,2]
[421349257,1777486248000,-226.16685341,0.00023044,2]
[421349259,1777486248000,-668.65185757,0.00023539,2]
[421349260,1777486248000,-493.30270893,0.00023539,2]
[421349261,1777486248000,-2000.0,0.000236,2]
[421349258,1777486248000,-150.0,0.0002326,21]
[421349262,1777486248000,-15000.0,0.000238,2]
[421349248,1777486248000,-371.0,0.00023,2]
[421349266,1777486248000,-614.759,0.00023853,2]
[421349278,1777486248000,-162.0,0.00024012,3]
[421349285,1777486248000,-176.237799,0.00024322,2]
[421349275,1777486248000,-249.0,0.00024,2]
[421349273,1777486248000,-418.0,0.00024,2]
[421349263,1777486248000,-4059.70373792,0.00023805,72]
[421349270,1777486248000,-371.0,0.00024,2]
[421349264,1777486248000,-1663.0,0.00023831,2]
[421349265,1777486248000,-150.0,0.00023834,2]
[421349271,1777486248000,-558.0,0.00024,2]
[421349272,1777486248000,-682.0,0.00024,2]
[421349269,1777486248000,-168.90368879,0.00024,2]
[421349267,1777486248000,-325.83,0.000239,7]
[421349268,1777486248000,-280.0,0.00024,2]
[421349346,1777486249000,-458.0,0.00024658,2]
[421349345,1777486249000,-458.0,0.00024658,2]
[421349353,1777486249000,-458.0,0.00024658,2]
[421349339,1777486249000,-458.0,0.00024658,2]
[421349342,1777486249000,-458.0,0.00024658,2]
[421349337,1777486249000,-458.0,0.00024658,2]
[421349335,1777486249000,-458.0,0.00024658,2]
[421349336,1777486249000,-458.0,0.00024658,2]
[421349343,1777486249000,-458.0,0.00024658,2]
[421349334,1777486249000,-458.0,0.00024658,2]
[421349338,1777486249000,-458.0,0.00024658,2]
[421349354,1777486249000,-458.0,0.00024658,2]
[421349350,1777486249000,-458.0,0.00024658,2]
[421349349,1777486249000,-458.0,0.00024658,2]
[421349351,1777486249000,-458.0,0.00024658,2]
[421349355,1777486249000,-458.0,0.00024658,2]
[421349352,1777486249000,-458.0,0.00024658,2]
[421349348,1777486249000,-458.0,0.00024658,2]
[421349356,1777486249000,-458.0,0.00024658,2]
[421349363,1777486249000,-458.0,0.00024658,2]
[421349358,1777486249000,-458.0,0.00024658,2]
[421349359,1777486249000,-458.0,0.00024658,2]
[421349357,1777486249000,-458.0,0.00024658,2]
[421349361,1777486249000,-458.0,0.00024658,2]
[421349344,1777486249000,-458.0,0.00024658,2]
[421349347,1777486249000,-458.0,0.00024658,2]
[421349341,1777486249000,-458.0,0.00024658,2]
[421349315,1777486249000,-458.0,0.00024658,2]
[421349333,1777486249000,-458.0,0.00024658,2]
[421349364,1777486249000,-458.0,0.00024658,2]
[421349308,1777486249000,-458.0,0.00024658,2]
[421349309,1777486249000,-458.0,0.00024658,2]
[421349307,1777486249000,-458.0,0.00024658,2]
[421349310,1777486249000,-458.0,0.00024658,2]
[421349312,1777486249000,-458.0,0.00024658,2]
[421349320,1777486249000,-458.0,0.00024658,2]
[421349321,1777486249000,-458.0,0.00024658,2]
[421349319,1777486249000,-458.0,0.00024658,2]
[421349313,1777486249000,-458.0,0.00024658,2]
[421349311,1777486249000,-458.0,0.00024658,2]
[421349317,1777486249000,-458.0,0.00024658,2]
[421349340,1777486249000,-458.0,0.00024658,2]
[421349314,1777486249000,-458.0,0.00024658,2]
[421349318,1777486249000,-458.0,0.00024658,2]
[421349322,1777486249000,-458.0,0.00024658,2]
[421349331,1777486249000,-458.0,0.00024658,2]
[421349332,1777486249000,-458.0,0.00024658,2]
[421349324,1777486249000,-458.0,0.00024658,2]
[421349326,1777486249000,-458.0,0.00024658,2]
[421349323,1777486249000,-458.0,0.00024658,2]
[421349325,1777486249000,-458.0,0.00024658,2]
[421349330,1777486249000,-458.0,0.00024658,2]
[421349329,1777486249000,-458.0,0.00024658,2]
[421349327,1777486249000,-458.0,0.00024658,2]
[421349328,1777486249000,-458.0,0.00024658,2]
[421349316,1777486249000,-458.0,0.00024658,2]
[421349366,1777486249000,-458.0,0.00024658,2]
[421349387,1777486249000,-151.0,0.00024658,2]
[421349365,1777486249000,-458.0,0.00024658,2]
[421349394,1777486249000,-151.0,0.00024658,2]
[421349397,1777486249000,-154.271573,0.00024658,2]
[421349398,1777486249000,-151.0,0.00024658,2]
[421349395,1777486249000,-154.271573,0.00024658,2]
[421349401,1777486249000,-151.0,0.00024658,2]
[421349399,1777486249000,-154.271573,0.00024658,2]
[421349402,1777486249000,-151.0,0.00024658,2]
[421349403,1777486249000,-151.0,0.00024658,2]
[421349404,1777486249000,-806.148043,0.00024658,2]
[421349407,1777486249000,-806.148043,0.00024658,2]
[421349406,1777486249000,-806.148043,0.00024658,2]
[421349410,1777486249000,-806.148043,0.00024658,2]
[421349396,1777486249000,-151.0,0.00024658,2]
[421349411,1777486249000,-806.148043,0.00024658,2]
[421349408,1777486249000,-806.148043,0.00024658,2]
[421349405,1777486249000,-806.148043,0.00024658,2]
[421349412,1777486249000,-1000.0,0.00024658,2]
[421349414,1777486249000,-150.0,0.00024658,2]
[421349415,1777486249000,-600.0,0.00024658,2]
[421349413,1777486249000,-1257.63,0.00024658,2]
[421349417,1777486249000,-600.0,0.00024658,2]
[421349420,1777486249000,-963.0,0.00024658,2]
[421349416,1777486249000,-600.0,0.00024658,2]
[421349421,1777486249000,-963.0,0.00024658,2]
[421349419,1777486249000,-963.0,0.00024658,2]
[421349360,1777486249000,-458.0,0.00024658,2]
[421349409,1777486249000,-806.148043,0.00024658,2]
[421349400,1777486249000,-151.0,0.00024658,2]
[421349418,1777486249000,-600.0,0.00024658,2]
[421349392,1777486249000,-151.0,0.00024658,2]
[421349393,1777486249000,-154.271573,0.00024658,2]
[421349362,1777486249000,-458.0,0.00024658,2]
[421349367,1777486249000,-458.0,0.00024658,2]
[421349369,1777486249000,-458.0,0.00024658,2]
[421349371,1777486249000,-458.0,0.00024658,2]
[421349379,1777486249000,-458.0,0.00024658,2]
[421349372,1777486249000,-458.0,0.00024658,2]
[421349378,1777486249000,-458.0,0.00024658,2]
[421349377,1777486249000,-458.0,0.00024658,2]
[421349370,1777486249000,-458.0,0.00024658,2]
[421349373,1777486249000,-458.0,0.00024658,2]
[421349374,1777486249000,-458.0,0.00024658,2]
[421349376,1777486249000,-458.0,0.00024658,2]
[421349368,1777486249000,-458.0,0.00024658,2]
[421349380,1777486249000,-458.0,0.00024658,2]
[421349375,1777486249000,-458.0,0.00024658,2]
[421349385,1777486249000,-458.0,0.00024658,2]
[421349388,1777486249000,-154.271573,0.00024658,2]
[421349384,1777486249000,-458.0,0.00024658,2]
[421349383,1777486249000,-458.0,0.00024658,2]
[421349386,1777486249000,-151.0,0.00024658,2]
[421349391,1777486249000,-154.271573,0.00024658,2]
[421349381,1777486249000,-458.0,0.00024658,2]
[421349382,1777486249000,-458.0,0.00024658,2]
[421349390,1777486249000,-154.271573,0.00024658,2]
[421349422,1777486249000,-963.0,0.00024658,2]
[421349389,1777486249000,-154.271573,0.00024658,2]
[421349452,1777486250000,-154.271573,0.000249,2]
[421349451,1777486250000,-151.0,0.000249,2]
[421349447,1777486250000,-154.271573,0.000249,2]
[421349455,1777486250000,-806.148043,0.000249,2]
[421349454,1777486250000,-210.699704,0.000249,2]
[421349450,1777486250000,-154.271573,0.000249,2]
[421349457,1777486250000,-806.148043,0.000249,2]
[421349458,1777486250000,-806.148043,0.000249,2]
[421349459,1777486250000,-603600.221123,0.000249,2]
[421349456,1777486250000,-806.148043,0.000249,2]
[421349448,1777486250000,-154.271573,0.000249,2]
[421349463,1777486250000,-2650.08229146,0.000249,2]
[421349460,1777486250000,-151.0,0.000249,2]
[421349462,1777486250000,-5529.0,0.000249,3]
[421349464,1777486250000,-1125.10221269,0.00025,2]
[421349466,1777486250000,-1802.78357785,0.00025,2]
[421349465,1777486250000,-209.57283548,0.00025,2]
[421349469,1777486250000,-616.89305457,0.00025,2]
[421349467,1777486250000,-2000.0,0.00025,2]
[421349470,1777486250000,-3073.87867705,0.00025,2]
[421349449,1777486250000,-151.0,0.000249,2]
[421349468,1777486250000,-540.0,0.00025,2]
[421349461,1777486250000,-151.0,0.000249,2]
[421349445,1777486250000,-500.0,0.00024756,7]
[421349441,1777486250000,-963.0,0.00024658,2]
[421349443,1777486250000,-150.0,0.00024658,2]
[421349471,1777486250000,-7199.03780148,0.00025,2]
[421349428,1777486250000,-963.0,0.00024658,2]
[421349425,1777486250000,-963.0,0.00024658,2]
[421349426,1777486250000,-963.0,0.00024658,2]
[421349427,1777486250000,-963.0,0.00024658,2]
[421349423,1777486250000,-963.0,0.00024658,2]
[421349424,1777486250000,-963.0,0.00024658,2]
[421349430,1777486250000,-963.0,0.00024658,2]
[421349429,1777486250000,-963.0,0.00024658,2]
[421349432,1777486250000,-963.0,0.00024658,2]
[421349446,1777486250000,-150.0,0.00024834,2]
[421349433,1777486250000,-963.0,0.00024658,2]
[421349439,1777486250000,-963.0,0.00024658,2]
[421349435,1777486250000,-963.0,0.00024658,2]
[421349431,1777486250000,-963.0,0.00024658,2]
[421349434,1777486250000,-963.0,0.00024658,2]
[421349436,1777486250000,-963.0,0.00024658,2]
[421349438,1777486250000,-963.0,0.00024658,2]
[421349440,1777486250000,-963.0,0.00024658,2]
[421349442,1777486250000,-834.9099874,0.00024658,2]
[421349444,1777486250000,-500.0,0.00024756,7]
[421349453,1777486250000,-151.0,0.000249,2]
[421349437,1777486250000,-963.0,0.00024658,2]
[421349472,1777486250000,-2222.0509497,0.00025,2]
[421349495,1777486250000,-150.0,0.00025,2]
[421349473,1777486250000,-168.96294146,0.00025,2]
[421349498,1777486250000,-150.0,0.00025,2]
[421349500,1777486250000,-150.0,0.00025,2]
[421349505,1777486250000,-151.0,0.000251,2]
[421349507,1777486250000,-300.0,0.00025184,2]
[421349506,1777486250000,-300.0,0.00025184,2]
[421349502,1777486250000,-150.0,0.00025,2]
[421349508,1777486250000,-300.0,0.00025184,2]
[421349518,1777486250000,-4825.88244789,0.00025311,77]
[421349516,1777486250000,-250.0,0.00025205,2]
[421349474,1777486250000,-163.5866994,0.00025,2]
[421349509,1777486250000,-300.0,0.00025184,2]
[421349515,1777486250000,-183.0,0.00025184,2]
[421349514,1777486250000,-300.0,0.00025184,2]
[421349510,1777486250000,-300.0,0.00025184,2]
[421349512,1777486250000,-300.0,0.00025184,2]
[421349513,1777486250000,-300.0,0.00025184,2]
[421349517,1777486250000,-197.2,0.000253,7]
[421349519,1777486250000,-1272.8154261,0.00025446,2]
[421349520,1777486250000,-1135.6410389,0.00025446,2]
[421349523,1777486250000,-559.43359795,0.0002547,2]
[421349522,1777486250000,-297.8487114,0.00025446,2]
[421349521,1777486250000,-337.8037651,0.00025446,2]
[421349524,1777486250000,-120390.18622231,0.00025471,2]
[421349504,1777486250000,-162.31979731,0.00025,3]
[421349501,1777486250000,-150.0,0.00025,2]
[421349511,1777486250000,-300.0,0.00025184,2]
[421349499,1777486250000,-150.0,0.00025,2]
[421349503,1777486250000,-170.128,0.00025,2]
[421349477,1777486250000,-150.0,0.00025,2]
[421349480,1777486250000,-550.0,0.00025,2]
[421349478,1777486250000,-76186.80585161,0.00025,2]
[421349479,1777486250000,-1344.4428758,0.00025,4]
[421349481,1777486250000,-296.0990495,0.00025,2]
[421349482,1777486250000,-372.62462887,0.00025,2]
[421349483,1777486250000,-570.83228651,0.00025,2]
[421349484,1777486250000,-684.19936628,0.00025,2]
[421349485,1777486250000,-431.30080309,0.00025,2]
[421349476,1777486250000,-150.17687225,0.00025,2]
[421349475,1777486250000,-4838.0339757,0.00025,2]
[421349489,1777486250000,-2727.55100243,0.00025,2]
[421349486,1777486250000,-724.34944557,0.00025,2]
[421349494,1777486250000,-150.0,0.00025,2]
[421349493,1777486250000,-150.0,0.00025,2]
[421349492,1777486250000,-150.0,0.00025,2]
[421349496,1777486250000,-150.0,0.00025,2]
[421349497,1777486250000,-150.0,0.00025,2]
[421349490,1777486250000,-150.0,0.00025,2]
[421349488,1777486250000,-311.0,0.00025,2]
[421349491,1777486250000,-150.0,0.00025,2]
[421349487,1777486250000,-251.0,0.00025,2]
[421349546,1777486251000,-213.0,0.00025779,2]
[421349542,1777486251000,-150.0,0.00025779,2]
[421349544,1777486251000,-150.0,0.00025779,2]
[421349549,1777486251000,-550.0,0.0002581,2]
[421349545,1777486251000,-150.0,0.00025779,2]
[421349543,1777486251000,-150.0,0.00025779,2]
[421349541,1777486251000,-150.0,0.00025779,2]
[421349538,1777486251000,-5916.76725697,0.00025608,2]
[421349535,1777486251000,-627.48942469,0.00025505,2]
[421349536,1777486251000,-250.48968913,0.00025519,2]
[421349539,1777486251000,-500.0,0.00025616,2]
[421349532,1777486251000,-176.237799,0.00025471,2]
[421349534,1777486251000,-176.237799,0.00025471,2]
[421349533,1777486251000,-176.237799,0.00025471,2]
[421349531,1777486251000,-176.237799,0.00025471,2]
[421349529,1777486251000,-600.0,0.00025471,2]
[421349528,1777486251000,-600.0,0.00025471,2]
[421349527,1777486251000,-600.0,0.00025471,2]
[421349530,1777486251000,-600.0,0.00025471,2]
[421349526,1777486251000,-269.544401,0.00025471,3]
[421349525,1777486251000,-151.0,0.00025471,3]
[421349550,1777486251000,-550.0,0.0002581,2]
[421349537,1777486251000,-5529.0,0.000256,5]
[421349552,1777486251000,-550.0,0.0002581,2]
[421349540,1777486251000,-350.0,0.00025753,2]
[421349548,1777486251000,-550.0,0.0002581,2]
[421349547,1777486251000,-550.0,0.0002581,2]
[421349575,1777486251000,-938.92147541,0.000263,2]
[421349569,1777486251000,-4567.5325641,0.00026,2]
[421349566,1777486251000,-450.0,0.0002586,2]
[421349567,1777486251000,-427.0,0.0002586,2]
[421349571,1777486251000,-325.83,0.00026,7]
[421349568,1777486251000,-606.77936225,0.0002599,2]
[421349574,1777486251000,-1134.5,0.00026296,2]
[421349573,1777486251000,-686.01172047,0.00026278,2]
[421349560,1777486251000,-450.0,0.0002586,2]
[421349563,1777486251000,-450.0,0.0002586,2]
[421349559,1777486251000,-450.0,0.0002586,2]
[421349572,1777486251000,-177.01,0.00026056,60]
[421349562,1777486251000,-450.0,0.0002586,2]
[421349558,1777486251000,-206.13,0.00025854,2]
[421349551,1777486251000,-550.0,0.0002581,2]
[421349553,1777486251000,-550.0,0.0002581,2]
[421349565,1777486251000,-450.0,0.0002586,2]
[421349554,1777486251000,-550.0,0.0002581,2]
[421349555,1777486251000,-550.0,0.0002581,2]
[421349561,1777486251000,-450.0,0.0002586,2]
[421349570,1777486251000,-218.60501717,0.00026,2]
[421349557,1777486251000,-150.0,0.00025834,2]
[421349556,1777486251000,-252.0,0.0002581,2]
[421349564,1777486251000,-450.0,0.0002586,2]
[421349595,1777486252000,-500.0,0.00026632,4]
[421349592,1777486252000,-500.0,0.00026632,4]
[421349587,1777486252000,-500.0,0.00026632,4]
[421349584,1777486252000,-150.0,0.0002638,2]
[421349586,1777486252000,-500.0,0.00026632,4]
[421349589,1777486252000,-500.0,0.00026632,4]
[421349580,1777486252000,-408.50698965,0.00026314,10]
[421349576,1777486252000,-366.95104446,0.000263,2]
[421349583,1777486252000,-300.0,0.0002637,2]
[421349578,1777486252000,-305.02118965,0.00026301,2]
[421349582,1777486252000,-337.0,0.00026325,2]
[421349579,1777486252000,-144.97881035,0.00026301,2]
[421349577,1777486252000,-242.41881035,0.000263,2]
[421349588,1777486252000,-500.0,0.00026632,4]
[421349581,1777486252000,-3235.8153852,0.00026314,10]
[421349591,1777486252000,-500.0,0.00026632,4]
[421349585,1777486252000,-193.155,0.000264,14]
[421349594,1777486252000,-500.0,0.00026632,4]
[421349609,1777486252000,-250.0,0.00027,2]
[421349608,1777486252000,-500.0,0.00026948,7]
[421349598,1777486252000,-500.0,0.00026632,4]
[421349599,1777486252000,-423.22,0.00026632,4]
[421349600,1777486252000,-4852.76925904,0.00026817,80]
[421349603,1777486252000,-550.0,0.00026849,2]
[421349606,1777486252000,-51.51251191,0.00026887,2]
[421349607,1777486252000,-500.0,0.00026948,7]
[421349604,1777486252000,-5574.97125576,0.00026887,2]
[421349610,1777486252000,-54.17488779,0.00027,2]
[421349593,1777486252000,-500.0,0.00026632,4]
[421349596,1777486252000,-500.0,0.00026632,4]
[421349590,1777486252000,-500.0,0.00026632,4]
[421349605,1777486252000,-378.81,0.00026887,2]
[421349602,1777486252000,-150.0,0.00026834,2]
[421349597,1777486252000,-500.0,0.00026632,4]
[421349601,1777486252000,-1663.0,0.00026831,2]
[421349616,1777486410000,343.06,8.047e-05,2]
[421349615,1777486410000,343.06,7.698e-05,2]
[421349613,1777486410000,343.06,6.998e-05,2]
[421349612,1777486410000,343.06,6.648e-05,2]
[421349614,1777486410000,343.06,7.348e-05,2]
[421349617,1777486530000,150.0,0.00010451,30]
[421349618,1777486567000,269.0,0.000155,30]
[421349620,1777486707000,687.0,0.0003011,120]
[421349622,1777486715000,500.0,0.00029999,120]
[421349621,1777486715000,500.0,0.00027999,120]
[421349623,1777486759000,1000.0,0.000155,30]
[421349624,1777486905000,8301.84944168,0.00030137,120]
[421349625,1777486917000,-250.0,8.397e-05,2]
[421349626,1777487073000,500.0,0.00027999,120]
[421349627,1777487073000,273.11782668,0.00029999,120]
[421349628,1777487082000,850.0,0.0003013,120]
[421349629,1777487084000,455.0,0.0003013,120]
[421349631,1777487131000,295.39381884,0.00029999,120]
[421349630,1777487131000,500.0,0.00027999,120]
[421349632,1777487140000,500.0,0.0003013,120]
[421349635,1777487243000,249.76,4.902e-05,2]
[421349637,1777487243000,249.76,5.418e-05,2]
[421349636,1777487243000,249.76,5.16e-05,2]
[421349641,1777487244000,249.76,6.45e-05,2]
[421349640,1777487244000,249.76,6.192e-05,2]
[421349639,1777487244000,249.76,5.934e-05,2]
[421349638,1777487244000,249.76,5.676e-05,2]
[421349642,1777487245000,249.76,6.708e-05,2]
[421349644,1777487246000,249.76,7.223e-05,2]
[421349643,1777487246000,249.76,6.966e-05,2]
[421349645,1777487246000,249.76,7.481e-05,2]
[421349649,1777487246000,-93.06,8.397e-05,2]
[421349648,1777487246000,249.76,8.255e-05,2]
[421349647,1777487246000,249.76,7.997e-05,2]
[421349646,1777487246000,249.76,7.739e-05,2]
[421349651,1777487386000,500.0,0.00029452,120]
[421349668,1777487432000,-271.16320562,8.497e-05,2]
[421349667,1777487432000,-344.07943496,8.497e-05,2]
[421349690,1777487438000,-481.50644453,8.497e-05,2]
[421349692,1777487438000,-150.0,8.497e-05,2]
[421349691,1777487438000,-103.25091489,8.497e-05,2]
[421349693,1777487438000,-69595.88994593,8.498e-05,2]
[421349696,1777487438000,-48993.48432967,8.498e-05,2]
[421349697,1777487438000,-829.67010334,8.498e-05,2]
[421349695,1777487438000,-36767.81466766,8.498e-05,2]
[421349698,1777487438000,-89781.80467481,8.498e-05,2]
[421349694,1777487438000,-2296.45179932,8.498e-05,2]
[421349727,1777487440000,-200.0,9.61e-05,2]
[421349729,1777487440000,-9999.99,9.67e-05,2]
[421349728,1777487440000,-9999.99,9.67e-05,2]
[421349730,1777487440000,-265.54,9.67e-05,2]
[421349725,1777487440000,-343.06,9.447e-05,2]
[421349724,1777487440000,-980.0,9.346e-05,2]
[421349723,1777487440000,-480.23228254,9.316e-05,2]
[421349720,1777487440000,-249.76,9.029e-05,2]
[421349719,1777487440000,-1200.0,9e-05,3]
[421349726,1777487440000,-249.76,9.545e-05,2]
[421349717,1777487440000,-249.76,8.771e-05,2]
[421349714,1777487440000,-249.76,8.513e-05,2]
[421349715,1777487440000,-15654.5109,8.599e-05,2]
[421349716,1777487440000,-343.06,8.747e-05,2]
[421349718,1777487440000,-600.0,8.9e-05,3]
[421349713,1777487440000,-11181.24817927,8.498e-05,2]
[421349722,1777487440000,-249.76,9.287e-05,2]
[421349731,1777487440000,-343.06,9.797e-05,2]
[421349721,1777487440000,-343.06,9.097e-05,2]
[421349740,1777487440000,-150.99,0.00010475,2]
[421349749,1777487440000,-158.37,0.00010879,2]
[421349737,1777487440000,-343.06,0.00010147,2]
[421349747,1777487440000,-1600.0,0.00010807,2]
[421349750,1777487440000,-6302.91431275,0.000109,2]
[421349745,1777487440000,-162.31979731,0.00010804,2]
[421349748,1777487440000,-343.06,0.00010847,2]
[421349744,1777487440000,-4772.32,0.00010773,2]
[421349743,1777487440000,-255.68,0.00010603,2]
[421349746,1777487440000,-160.0,0.00010804,2]
[421349739,1777487440000,-9999.99,0.00010475,2]
[421349742,1777487440000,-500.0,0.00010527,2]
[421349732,1777487440000,-205.0,9.8e-05,2]
[421349741,1777487440000,-343.06,0.00010497,2]
[421349738,1777487440000,-1054.33,0.00010475,2]
[421349733,1777487440000,-249.76,9.803e-05,2]
[421349735,1777487440000,-531.78511737,0.0001,2]
[421349734,1777487440000,-539.63418335,0.0001,2]
[421349736,1777487440000,-524.05408495,0.0001,2]
[421349808,1777487441000,-250.0,0.00013,2]
[421349793,1777487441000,-500.0,0.00011999,2]
[421349791,1777487441000,-500.0,0.00011999,2]
[421349787,1777487441000,-500.0,0.00011999,2]
[421349790,1777487441000,-500.0,0.00011999,2]
[421349783,1777487441000,-500.0,0.00011999,2]
[421349786,1777487441000,-500.0,0.00011999,2]
[421349795,1777487441000,-12849.13898077,0.00012058,2]
[421349794,1777487441000,-1534827.31550002,0.00012,2]
[421349792,1777487441000,-500.0,0.00011999,2]
[421349785,1777487441000,-500.0,0.00011999,2]
[421349789,1777487441000,-500.0,0.00011999,2]
[421349805,1777487441000,-449.42363997,0.00012615,2]
[421349796,1777487441000,-1600.0,0.00012157,2]